bitfinex/quotes_BTCUSD_20240820
["timestamp","ask_amount","ask_price","bid_price","bid_amount"]
[1724186160291,0.000823,59690.0,59689.0,1.9371225]
[1724186160571,0.000823,59690.0,59689.0,1.94307767]
[1724186162241,0.000823,59690.0,59689.0,1.93987629]
[1724186162423,0.000823,59690.0,59689.0,1.94307767]
[1724186162861,0.000823,59690.0,59689.0,1.93707767]
[1724186163074,0.000823,59690.0,59689.0,2.28214767]
[1724186163276,0.000823,59690.0,59689.0,2.35734767]
[1724186164132,0.000823,59690.0,59689.0,2.35734391]
[1724186165694,0.000823,59690.0,59689.0,2.19436513]
[1724186166007,0.000823,59690.0,59689.0,2.13316513]
[1724186172136,0.000823,59690.0,59689.0,2.13315416]
[1724186172414,0.000823,59690.0,59689.0,1.79808416]
[1724186173943,0.000823,59690.0,59689.0,1.86438416]
[1724186174079,0.000823,59690.0,59689.0,2.02836433]
[1724186175109,1e-08,59690.0,59689.0,3.03492004]
[1724186175309,1e-08,59690.0,59689.0,3.03491191]
[1724186175533,1e-08,59690.0,59689.0,2.88414715]
[1724186175768,1e-08,59690.0,59689.0,3.03491332]
[1724186175976,1e-08,59690.0,59689.0,3.03491389]
[1724186176172,1e-08,59690.0,59689.0,2.69984389]
[1724186177445,1e-08,59690.0,59689.0,2.54907715]
[1724186178919,1e-08,59690.0,59689.0,2.02836433]
[1724186179127,1e-08,59690.0,59689.0,1.85038555]
[1724186179685,1e-08,59690.0,59689.0,1.86438555]
[1724186180307,1e-08,59690.0,59689.0,1.23761417]
[1724186180601,1e-08,59690.0,59689.0,1.35441417]
[1724186181830,1e-08,59690.0,59689.0,1.37741417]
[1724186183793,1e-08,59690.0,59689.0,1.37743282]
[1724186185355,1e-08,59690.0,59689.0,1.26063282]
[1724186185567,1e-08,59690.0,59689.0,0.4753452]
[1724186185568,0.30783201,59690.0,59689.0,0.4753452]
[1724186185764,0.14030001,59690.0,59689.0,0.07826027]
[1724186185994,0.14030001,59690.0,59689.0,0.028]
[1724186186270,0.30783201,59690.0,59689.0,0.797718]
[1724186186495,0.64289601,59690.0,59689.0,0.783718]
[1724186186698,1.45786781,59690.0,59689.0,0.783718]
[1724186187272,1.45786781,59690.0,59689.0,0.769718]
[1724186187485,1.45786781,59690.0,59689.0,0.783718]
[1724186187911,1.45786781,59690.0,59689.0,0.797718]
[1724186188112,1.45786781,59690.0,59689.0,0.769718]
[1724186188309,1.45786781,59690.0,59689.0,0.771718]
[1724186188550,1.45786781,59690.0,59689.0,0.774718]
[1724186191543,1.65786781,59690.0,59689.0,0.774718]
[1724186192264,1.65786781,59690.0,59689.0,0.771718]
[1724186192941,1.65786781,59690.0,59689.0,0.769718]
[1724186193304,1.65886781,59690.0,59689.0,0.769718]
[1724186196443,1.65886781,59690.0,59689.0,0.7706222]
[1724186198396,1.63262263,59690.0,59689.0,0.7706222]
[1724186199007,1.65887168,59690.0,59689.0,0.7706222]
[1724186202710,1.63262263,59690.0,59689.0,0.7706222]
[1724186202885,1.65887168,59690.0,59689.0,0.7706222]
[1724186203082,1.63262263,59690.0,59689.0,0.7706222]
[1724186204992,1.51582263,59690.0,59689.0,0.7706222]
[1724186206204,1.63262263,59690.0,59689.0,0.7706222]
[1724186209519,1.65887125,59690.0,59689.0,0.7706222]
[1724186219851,1.54207125,59690.0,59689.0,0.7706222]
[1724186220816,1.34207125,59690.0,59689.0,0.7706222]
[1724186221220,0.86490863,59690.0,59689.0,0.7706222]
[1724186221671,0.52984463,59690.0,59689.0,0.7706222]
[1724186222060,0.52884463,59690.0,59689.0,0.8470222]
[1724186222277,0.02624863,59690.0,59689.0,1.0145572]
[1724186222477,0.02724863,59690.0,59689.0,1.30518334]
[1724186222674,0.00100001,59690.0,59689.0,1.31418334]
[1724186222882,0.00100001,59690.0,59689.0,1.19738334]
[1724186223508,0.00100001,59690.0,59689.0,1.64925334]
[1724186223762,1e-08,59690.0,59689.0,1.64925334]
[1724186224146,1e-08,59690.0,59689.0,1.5440272]
[1724186224352,1e-08,59690.0,59689.0,1.0921572]
[1724186227438,1e-08,59690.0,59689.0,1.4272272]
[1724186228571,1e-08,59690.0,59689.0,1.47744216]
[1724186228743,1e-08,59690.0,59689.0,1.4272272]
[1724186229357,1e-08,59690.0,59689.0,1.47744216]
[1724186230225,1e-08,59690.0,59689.0,1.4272272]
[1724186230636,1e-08,59690.0,59689.0,1.4192272]
[1724186230815,1e-08,59690.0,59689.0,1.4332272]
[1724186231122,1e-08,59690.0,59689.0,1.4242272]
[1724186231329,1e-08,59690.0,59689.0,1.4382272]
[1724186231737,1e-08,59690.0,59689.0,1.1031572]
[1724186233544,1e-08,59690.0,59689.0,0.9356222]
[1724186235113,1.24022263,59690.0,59689.0,0.7986222]
[1724186235320,1.26646932,59690.0,59689.0,0.7986222]
[1724186236805,1.26646932,59690.0,59689.0,0.7846222]
[1724186237157,1.26646932,59690.0,59689.0,0.7776222]
[1724186237559,1.26646932,59690.0,59689.0,0.7856222]
[1724186239625,1.87703332,59690.0,59689.0,0.7856222]
[1724186239886,2.31509732,59690.0,59689.0,0.7856222]
[1724186240287,2.31709732,59690.0,59689.0,0.7856222]
[1724186240487,2.65216132,59690.0,59689.0,0.7856222]
[1724186240694,2.65216132,59690.0,59689.0,0.7786222]
[1724186240695,2.66208711,59690.0,59689.0,0.7786222]
[1724186240894,2.66308711,59690.0,59689.0,0.7706222]
[1724186241369,2.66308711,59690.0,59689.0,0.7716222]
[1724186241581,2.66308711,59690.0,59689.0,0.7706222]
[1724186241582,2.66208711,59690.0,59689.0,0.7706222]
[1724186241728,2.66308711,59690.0,59689.0,0.7716222]
[1724186241937,2.66408711,59690.0,59689.0,0.7726222]
[1724186242532,2.95608711,59690.0,59689.0,0.7726222]
[1724186242730,2.95408711,59690.0,59689.0,0.7726222]
[1724186242934,2.95208711,59690.0,59689.0,0.7726222]
[1724186243159,2.61602311,59690.0,59689.0,0.7726222]
[1724186243312,2.28095911,59690.0,59689.0,0.7726222]
[1724186245160,2.62795911,59690.0,59689.0,0.7726222]
[1724186245363,2.62695911,59690.0,59689.0,0.7726222]
[1724186245834,2.96202311,59690.0,59689.0,0.7726222]
[1724186246158,2.96202311,59690.0,59684.0,0.00020169]
[1724186246159,0.33989062,59685.0,59684.0,0.00020169]
[1724186246337,3.45586731,59685.0,59684.0,6.9e-07]
[1724186246478,4.99855131,59685.0,59684.0,6.9e-07]
[1724186246684,5.33364331,59685.0,59684.0,6.9e-07]
[1724186247452,5.34864331,59685.0,59684.0,6.9e-07]
[1724186247993,5.34364331,59685.0,59684.0,6.9e-07]
[1724186248745,5.34864331,59685.0,59684.0,6.9e-07]
[1724186250928,5.35536531,59685.0,59684.0,6.9e-07]
[1724186251334,5.70136531,59685.0,59684.0,6.9e-07]
[1724186251689,5.35536531,59685.0,59684.0,6.9e-07]
[1724186252093,5.37290481,59685.0,59684.0,6.9e-07]
[1724186253288,5.36290481,59685.0,59684.0,6.9e-07]
[1724186253657,5.36290481,59685.0,59674.0,0.0009042]
[1724186253658,2.21521262,59675.0,59674.0,0.0009042]
[1724186253843,2.81421262,59675.0,59674.0,0.0009042]
[1724186254699,2.82321262,59675.0,59674.0,0.0009042]
[1724186254915,2.83221262,59675.0,59674.0,0.0009042]
[1724186255120,2.83421262,59675.0,59674.0,0.0009042]
[1724186255321,0.00679862,59673.0,59672.0,6e-07]
[1724186255517,3.5385361,59673.0,59672.0,6e-07]
[1724186255719,4.3088541,59673.0,59672.0,6e-07]
[1724186255920,5.3251721,59673.0,59672.0,6e-07]
[1724186256095,5.68659593,59673.0,59672.0,6e-07]
[1724186256490,5.68659593,59673.0,59651.0,0.05109996]
[1724186256491,2.07635962,59667.0,59666.0,8e-07]
[1724186256692,2.63852445,59667.0,59666.0,8e-07]
[1724186256990,2.99671745,59667.0,59666.0,8e-07]
[1724186257627,2.99371745,59667.0,59666.0,8e-07]
[1724186257839,2.99271745,59667.0,59666.0,8e-07]
[1724186258040,3.00671745,59667.0,59666.0,8e-07]
[1724186258475,3.02471745,59667.0,59666.0,8e-07]
[1724186258694,3.01071745,59667.0,59666.0,8e-07]
[1724186258956,3.02471745,59667.0,59666.0,8e-07]
[1724186260082,3.01071745,59667.0,59666.0,8e-07]
[1724186260317,3.02471745,59667.0,59666.0,8e-07]
[1724186260723,3.03479535,59667.0,59666.0,8e-07]
[1724186261313,3.07941707,59667.0,59666.0,8e-07]
[1724186262914,3.03079535,59667.0,59666.0,8e-07]
[1724186263108,3.01679535,59667.0,59666.0,8e-07]
[1724186263313,3.00279535,59667.0,59666.0,8e-07]
[1724186263484,3.03279535,59667.0,59666.0,8e-07]
[1724186263690,3.03479535,59667.0,59666.0,8e-07]
[1724186263923,3.03079535,59667.0,59666.0,8e-07]
[1724186264713,3.00453052,59667.0,59666.0,8e-07]
[1724186265262,3.00653052,59667.0,59666.0,8e-07]
[1724186265437,3.00853052,59667.0,59666.0,8e-07]
[1724186266393,2.99053052,59667.0,59666.0,8e-07]
[1724186266593,3.01679634,59667.0,59666.0,8e-07]
[1724186266800,3.01379634,59667.0,59666.0,8e-07]
[1724186267224,3.02479634,59667.0,59666.0,8e-07]
[1724186267396,3.04233584,59667.0,59666.0,8e-07]
[1724186267603,3.04633584,59667.0,59666.0,8e-07]
[1724186268015,3.39233584,59667.0,59666.0,8e-07]
[1724186268811,3.04633584,59667.0,59666.0,8e-07]
[1724186269843,3.04233584,59667.0,59666.0,8e-07]
[1724186270320,3.04433584,59667.0,59666.0,8e-07]
[1724186270918,3.04633584,59667.0,59666.0,8e-07]
[1724186271555,3.03533584,59667.0,59666.0,8e-07]
[1724186271758,3.08475984,59667.0,59666.0,8e-07]
[1724186272093,3.09675984,59667.0,59666.0,8e-07]
[1724186272227,3.09275984,59667.0,59666.0,8e-07]
[1724186272415,3.09475984,59667.0,59666.0,8e-07]
[1724186272783,3.08375984,59667.0,59666.0,8e-07]
[1724186272908,3.08175984,59667.0,59666.0,8e-07]
[1724186273312,3.08275984,59667.0,59666.0,8e-07]
[1724186275516,3.44775984,59667.0,59666.0,8e-07]
[1724186276945,3.44375984,59667.0,59666.0,8e-07]
[1724186277157,3.09775984,59667.0,59666.0,8e-07]
[1724186277356,3.09975984,59667.0,59666.0,8e-07]
[1724186277786,3.10175984,59667.0,59666.0,8e-07]
[1724186283854,3.09975984,59667.0,59666.0,8e-07]
[1724186284720,3.10175984,59667.0,59666.0,8e-07]
[1724186290696,3.10258284,59667.0,59666.0,8e-07]
[1724186293591,3.08858284,59667.0,59666.0,8e-07]
[1724186293959,3.08858284,59667.0,59656.0,0.0009042]
[1724186293960,2.08066762,59657.0,59656.0,0.0009042]
[1724186294169,2.52193344,59657.0,59656.0,0.0009042]
[1724186294574,2.87472194,59657.0,59656.0,0.0009042]
[1724186295807,2.87972194,59657.0,59656.0,2e-07]
[1724186296017,2.96872194,59657.0,59656.0,2e-07]
[1724186296197,2.95672194,59657.0,59656.0,2e-07]
[1724186296422,2.96072194,59657.0,59656.0,2e-07]
[1724186296624,2.88572194,59657.0,59656.0,2e-07]
[1724186297019,2.88172194,59657.0,59656.0,2e-07]
[1724186297148,2.89374093,59657.0,59656.0,2e-07]
[1724186298639,2.89774093,59657.0,59656.0,2e-07]
[1724186298789,2.89874093,59657.0,59656.0,2e-07]
[1724186299244,2.91274093,59657.0,59656.0,2e-07]
[1724186300325,2.90874093,59657.0,59656.0,2e-07]
[1724186300966,2.91074093,59657.0,59656.0,2e-07]
[1724186301174,2.97454093,59657.0,59656.0,2e-07]
[1724186301368,1.51164862,59648.0,59647.0,0.1436]
[1724186301581,1.63791444,59648.0,59647.0,0.1436]
[1724186302001,1.99621444,59648.0,59647.0,0.1436]
[1724186302400,1.99621444,59648.0,59647.0,0.0832]
[1724186302805,2.01021444,59648.0,59647.0,0.0832]
[1724186303223,0.16945662,59645.0,59642.0,0.1453]
[1724186303350,0.32172192,59645.0,59642.0,0.1453]
[1724186303533,0.99235592,59645.0,59642.0,0.1453]
[1724186303737,1.66298992,59645.0,59642.0,0.1453]
[1724186304359,1.99830692,59645.0,59642.0,0.1453]
[1724186304771,1.64690411,59645.0,59644.0,0.154342]
[1724186305160,1.65390411,59645.0,59644.0,0.154342]
[1724186305775,1.65990411,59645.0,59644.0,0.154342]
[1724186307560,1.21467344,59645.0,59644.0,0.154342]
[1724186308668,1.20167344,59645.0,59644.0,0.154342]
[1724186308879,1.21467344,59645.0,59644.0,0.154342]
[1724186309080,1.20767344,59645.0,59644.0,0.154342]
[1724186309274,1.30767344,59645.0,59644.0,0.154342]
[1724186309478,1.30267344,59645.0,59644.0,0.154342]
[1724186309693,1.30367344,59645.0,59644.0,0.154342]
[1724186310807,1.63899044,59645.0,59644.0,0.154342]
[1724186311550,1.63799044,59645.0,59644.0,0.154342]
[1724186311743,1.63699044,59645.0,59644.0,0.154342]
[1724186314145,1.63619182,59645.0,59644.0,0.154342]
[1724186314632,1.63699044,59645.0,59644.0,0.154342]
[1724186316599,1.63619182,59645.0,59644.0,0.154342]
[1724186316800,1.30087482,59645.0,59644.0,0.154342]
[1724186317435,0.52924082,59645.0,59644.0,0.154342]
[1724186317800,0.838292,59645.0,59644.0,0.154342]
[1724186318004,0.86455768,59645.0,59644.0,0.154342]
[1724186318803,0.839292,59645.0,59644.0,0.154342]
[1724186319004,0.86655834,59645.0,59644.0,0.154342]
[1724186321098,0.86835696,59645.0,59644.0,0.154342]
[1724186321507,1.30367396,59645.0,59644.0,0.009042]
[1724186321723,1.63899096,59645.0,59644.0,0.009042]
[1724186322376,1.63799096,59645.0,59644.0,0.009042]
[1724186322592,1.63699096,59645.0,59644.0,0.009042]
[1724186323404,1.63799096,59645.0,59644.0,0.009042]
[1724186324544,1.63699096,59645.0,59644.0,0.009042]
[1724186324741,1.64199096,59645.0,59644.0,0.009042]
[1724186324936,1.64699096,59645.0,59644.0,0.009042]
[1724186325271,1.64199096,59645.0,59644.0,0.009042]
[1724186325475,1.64699096,59645.0,59644.0,0.009042]
[1724186326278,1.73980162,59642.0,59641.0,0.109382]
[1724186326483,1.86606796,59642.0,59641.0,0.109382]
[1724186327110,1.86706796,59642.0,59641.0,0.082]
[1724186327730,1.86806796,59642.0,59641.0,0.082]
[1724186327965,1.86906796,59642.0,59641.0,0.082]
[1724186328160,1.86906796,59642.0,59641.0,0.057]
[1724186328395,1.86906796,59642.0,59632.0,0.05875752]
[1724186328396,1.37564262,59633.0,59632.0,0.05875752]
[1724186328609,1.40190896,59633.0,59632.0,0.05875752]
[1724186328811,1.40190896,59633.0,59632.0,0.009053]
[1724186329216,1.40190896,59633.0,59632.0,0.072953]
[1724186329424,1.20111034,59633.0,59632.0,0.072953]
[1724186329668,1.175844,59633.0,59632.0,0.072953]
[1724186330443,0.83946,59633.0,59632.0,0.072953]
[1724186330644,0.001,59633.0,59632.0,0.072953]
[1724186330850,0.03,59635.0,59633.0,0.0639]
[1724186331056,0.167691,59634.0,59633.0,0.0619]
[1724186331460,0.335365,59637.0,59633.0,0.0619]
[1724186331634,0.167683,59637.0,59634.0,0.167688]
[1724186331996,0.167683,59637.0,59633.0,0.0793]
[1724186331997,0.335352,59639.0,59635.0,0.167686]
[1724186332284,0.167672,59640.0,59636.0,0.167681]
[1724186332527,0.19767,59641.0,59637.0,0.167679]
[1724186333340,0.167673,59640.0,59636.0,0.167683]
[1724186333747,0.167675,59639.0,59636.0,0.167683]
[1724186333952,0.001,59637.0,59636.0,0.167683]
[1724186334154,0.11364,59641.0,59632.0,0.05934846]
[1724186334359,0.167679,59638.0,59637.0,0.0639]
[1724186334760,0.167679,59638.0,59637.0,0.0659]
[1724186334964,0.167679,59638.0,59637.0,0.1452]
[1724186335371,0.167679,59638.0,59637.0,0.1432]
[1724186335500,0.169679,59638.0,59637.0,0.1452]
[1724186336381,0.505035,59638.0,59637.0,0.1452]
[1724186339211,0.505035,59638.0,59637.0,0.1461053]
[1724186341372,0.840391,59638.0,59637.0,0.1461053]
[1724186341575,0.839391,59638.0,59637.0,0.1441053]
[1724186343441,0.840391,59638.0,59637.0,0.1491053]
[1724186346390,0.505035,59638.0,59637.0,0.1491053]
[1724186346514,0.840391,59638.0,59637.0,0.1491053]
[1724186349162,0.505035,59638.0,59637.0,0.1491053]
[1724186349586,0.840391,59638.0,59637.0,0.1491053]
[1724186349798,0.002,59638.0,59637.0,0.3167863]
[1724186350172,0.002,59638.0,59637.0,0.6521483]
[1724186351240,0.002,59638.0,59637.0,0.70244394]
[1724186352693,0.002,59638.0,59637.0,0.70245797]
[1724186352904,0.002823,59638.0,59637.0,0.70245797]
[1724186355493,0.002823,59638.0,59637.0,0.70245435]
[1724186355863,0.002823,59638.0,59637.0,1.03781635]
[1724186356066,0.002823,59638.0,59637.0,1.19286244]
[1724186356197,0.002823,59638.0,59637.0,1.46041936]
[1724186356392,0.002823,59638.0,59637.0,1.47670726]
[1724186356863,0.002823,59638.0,59637.0,1.57730576]
[1724186356994,0.001823,59638.0,59637.0,1.57230576]
[1724186357398,0.002823,59638.0,59637.0,1.47670726]
[1724186357598,0.001823,59638.0,59637.0,1.47670726]
[1724186358021,0.002823,59638.0,59637.0,1.57930576]
[1724186358470,0.002823,59638.0,59637.0,1.36180726]
[1724186358680,0.002823,59638.0,59637.0,1.4372463]
[1724186358908,0.002823,59638.0,59637.0,1.69816926]
[1724186359110,0.002823,59638.0,59637.0,1.70016926]
[1724186359448,0.002823,59638.0,59637.0,1.69716926]
[1724186360554,0.002823,59638.0,59637.0,1.46240576]
[1724186360888,0.002823,59638.0,59637.0,1.36180726]
[1724186361082,0.002823,59638.0,59637.0,1.46237132]
[1724186361283,0.002823,59638.0,59637.0,1.43723116]
[1724186361488,0.002823,59638.0,59637.0,1.5380259]
[1724186361689,0.002823,59638.0,59637.0,1.46237132]
[1724186361894,0.002823,59638.0,59637.0,1.48857239]
[1724186362117,0.002823,59638.0,59637.0,1.49057239]
[1724186362288,0.002823,59638.0,59637.0,1.36180726]
[1724186362504,0.002823,59638.0,59637.0,1.57548802]
[1724186362730,0.002823,59638.0,59637.0,1.57648802]
[1724186362904,0.002823,59638.0,59637.0,2.2042514]
[1724186363154,0.002823,59638.0,59637.0,2.07848627]
[1724186363289,0.002823,59638.0,59637.0,2.07728489]
[1724186363851,0.002823,59638.0,59637.0,2.08048627]
[1724186364066,0.002823,59638.0,59637.0,2.07728489]
[1724186364269,0.002823,59638.0,59637.0,2.08048627]
[1724186364390,0.002823,59638.0,59637.0,2.20614059]
[1724186364792,0.002823,59638.0,59637.0,2.08048627]
[1724186365006,0.002823,59638.0,59637.0,2.08045868]
[1724186365456,0.002823,59638.0,59637.0,2.20609755]
[1724186365860,0.002823,59638.0,59637.0,2.22909755]
[1724186366504,0.002823,59638.0,59637.0,2.22908265]
[1724186366701,0.000823,59638.0,59637.0,2.13416702]
[1724186367144,0.002823,59638.0,59637.0,2.16116702]
[1724186372641,0.002823,59638.0,59637.0,2.03554305]
[1724186374827,0.002823,59638.0,59637.0,2.03553948]
[1724186377689,0.000823,59645.0,59644.0,1.31972838]
[1724186377903,0.000823,59645.0,59644.0,1.84068092]
[1724186378127,0.000823,59645.0,59644.0,1.7137928]
[1724186378544,0.000823,59645.0,59644.0,1.84065365]
[1724186378752,0.000823,59645.0,59644.0,1.84265365]
[1724186379596,0.000823,59645.0,59644.0,1.85657452]
[1724186379772,0.000823,59645.0,59644.0,1.98586685]
[1724186379974,0.000823,59645.0,59644.0,1.97186685]
[1724186380383,0.000823,59645.0,59644.0,1.98586685]
[1724186380579,0.000823,59645.0,59644.0,2.10266685]
[1724186380786,0.000823,59645.0,59644.0,2.11666685]
[1724186381369,0.000823,59645.0,59644.0,1.99103053]
[1724186382686,0.000823,59645.0,59644.0,1.8617382]
[1724186383182,0.335247,59658.0,59644.0,1.8617382]
[1724186383183,0.1463,59666.0,59660.0,0.00020138]
[1724186383408,0.1463,59666.0,59665.0,0.1168]
[1724186385055,0.1463,59666.0,59665.0,0.298402]
[1724186385621,0.0662,59669.0,59665.0,0.298402]
[1724186385821,0.0662,59669.0,59666.0,0.167599]
[1724186386181,0.03,59672.0,59666.0,0.244199]
[1724186386410,0.03,59672.0,59666.0,0.578398]
[1724186386621,0.03,59672.0,59666.0,0.913597]
[1724186387408,0.03,59672.0,59666.0,0.927597]
[1724186387735,0.03,59672.0,59666.0,0.939597]
[1724186388527,0.03,59672.0,59666.0,0.863997]
[1724186390965,0.197582,59672.0,59666.0,0.863997]
[1724186393186,0.233492,59669.0,59666.0,0.026]
[1724186393395,0.233491,59669.0,59666.0,0.193599]
[1724186393597,0.233491,59669.0,59666.0,0.026]
[1724186393598,0.233493,59669.0,59666.0,0.026]
[1724186393797,0.167594,59668.0,59666.0,0.026]
[1724186394816,0.168419,59667.0,59666.0,0.026]
[1724186397152,0.985605,59667.0,59666.0,0.026]
[1724186397329,1.08640362,59667.0,59666.0,0.026]
[1724186397554,1.42159662,59667.0,59666.0,0.026]
[1724186397751,1.44785556,59667.0,59666.0,0.026]
[1724186398132,1.44785556,59667.0,59666.0,0.012]
[1724186398532,1.44785556,59667.0,59666.0,0.008]
[1724186398792,0.335235,59660.0,59654.0,0.04910703]
[1724186399005,0.16763,59655.0,59654.0,0.04910703]
[1724186399364,0.16763,59655.0,59650.0,0.335285]
[1724186399567,0.16763,59655.0,59652.0,0.167638]
[1724186399768,0.16763,59655.0,59647.0,0.0825]
[1724186399769,0.335277,59653.0,59647.0,0.0825]
[1724186400115,0.335277,59653.0,59647.0,0.25015]
[1724186400116,0.167642,59651.0,59647.0,0.25015]
[1724186401466,0.167637,59653.0,59649.0,0.167646]
[1724186401672,0.335269,59654.0,59648.0,0.16765]
[1724186401673,0.16764,59652.0,59648.0,0.16765]
[1724186401886,0.167622,59658.0,59649.0,0.0778]
[1724186402090,0.167622,59658.0,59654.0,0.167632]
[1724186402296,0.167628,59656.0,59653.0,0.0641]
[1724186402927,0.167628,59656.0,59653.0,0.231735]
[1724186403319,0.167625,59657.0,59654.0,0.167632]
[1724186403537,0.167625,59657.0,59654.0,0.167633]
[1724186403748,0.335244,59658.0,59653.0,0.008]
[1724186403949,0.502899,59654.0,59653.0,0.008]
[1724186404948,0.167639,59652.0,59648.0,0.16765]
[1724186405140,0.167643,59651.0,59647.0,0.167652]
[1724186405367,0.167643,59651.0,59646.0,0.335309]
[1724186405773,0.167643,59651.0,59648.0,0.167649]
[1724186406666,0.167643,59651.0,59648.0,0.166233]
[1724186407065,0.1415,59650.0,59647.0,0.167651]
[1724186407302,0.1415,59650.0,59647.0,0.167652]
[1724186408219,0.1415,59650.0,59648.0,0.167649]
[1724186408373,0.167639,59652.0,59648.0,0.180649]
[1724186408576,0.167639,59652.0,59648.0,0.194649]
[1724186408772,0.167639,59652.0,59648.0,0.167649]
[1724186409579,0.167642,59651.0,59648.0,0.181649]
[1724186410073,0.167642,59651.0,59648.0,0.193649]
[1724186411300,0.167642,59651.0,59648.0,0.181649]
[1724186411652,0.167642,59651.0,59648.0,0.194649]
[1724186411862,0.167639,59652.0,59648.0,0.194649]
[1724186412258,0.167639,59652.0,59648.0,0.208649]
[1724186412602,0.167639,59652.0,59649.0,0.167646]
[1724186413609,0.398076,59653.0,59648.0,0.04]
[1724186413812,0.16764,59652.0,59648.0,0.207647]
[1724186414108,0.17677072,59652.0,59648.0,0.179647]
[1724186414464,0.17677072,59652.0,59648.0,0.181647]
[1724186414893,0.17677072,59652.0,59649.0,0.012]
[1724186415096,0.167641,59651.0,59649.0,0.012]
[1724186415460,0.167641,59651.0,59648.0,0.181647]
[1724186415461,0.167645,59650.0,59648.0,0.014]
[1724186415639,0.167642,59651.0,59648.0,0.19365]
[1724186415810,0.167642,59651.0,59648.0,0.17965]
[1724186416023,0.167642,59651.0,59649.0,0.014]
[1724186416414,0.167642,59651.0,59649.0,0.027]
[1724186416619,0.30261134,59655.0,59649.0,0.027]
[1724186417041,0.167641,59652.0,59649.0,0.027]
[1724186417236,0.167641,59652.0,59649.0,0.013]
[1724186417785,0.167641,59652.0,59648.0,0.25745]
[1724186418061,0.167641,59652.0,59649.0,0.009]
[1724186418292,0.167641,59652.0,59649.0,0.023]
[1724186418672,0.167641,59652.0,59649.0,0.014]
[1724186419035,0.838222,59650.0,59649.0,0.026]
[1724186419664,0.903722,59650.0,59649.0,0.014]
[1724186420268,0.16765,59648.0,59647.0,0.0009042]
[1724186420489,1.03734862,59648.0,59647.0,0.0009042]
[1724186420689,1.10284862,59648.0,59647.0,0.0009042]
[1724186420888,1.43814862,59648.0,59647.0,0.0009042]
[1724186421763,1.43814862,59648.0,59647.0,0.0059042]
[1724186422313,1.32124862,59648.0,59647.0,0.0059042]
[1724186422523,0.50295,59648.0,59647.0,0.0099042]
[1724186423057,0.167648,59649.0,59648.0,0.0805]
[1724186423406,0.167648,59649.0,59648.0,0.1422]
[1724186423612,0.335268,59654.0,59649.0,0.167646]
[1724186423835,0.167638,59653.0,59649.0,0.167646]
[1724186424034,0.167638,59653.0,59650.0,0.0805]
[1724186424459,0.167633,59654.0,59650.0,0.248144]
[1724186424616,0.335264,59655.0,59650.0,0.0805]
[1724186424812,0.335264,59655.0,59650.0,0.167643]
[1724186425028,0.000822,59657.0,59652.0,0.1422]
[1724186425274,0.000822,59657.0,59655.0,0.0805]
[1724186426090,0.167627,59656.0,59655.0,0.0805]
[1724186427605,0.167627,59656.0,59655.0,0.0945]
[1724186429045,0.167627,59656.0,59655.0,0.1055]
[1724186429509,0.168447,59657.0,59655.0,0.1055]
[1724186429709,0.167627,59656.0,59655.0,0.1055]
[1724186430499,0.167627,59656.0,59655.0,0.0805]
[1724186430735,0.167627,59656.0,59655.0,0.0935]
[1724186431273,0.167627,59656.0,59655.0,0.0805]
[1724186431476,0.167627,59656.0,59655.0,0.0945]
[1724186431827,0.167627,59656.0,59655.0,0.1045]
[1724186432228,0.167627,59656.0,59655.0,0.0945]
[1724186432598,0.167627,59656.0,59655.0,0.1055]
[1724186438310,0.168447,59657.0,59655.0,0.1055]
[1724186438520,0.167627,59656.0,59655.0,0.1055]
[1724186439838,0.167627,59656.0,59655.0,0.025]
[1724186439839,0.83893562,59656.0,59655.0,0.025]
[1724186440216,0.838137,59656.0,59655.0,0.025]
[1724186440554,0.838137,59656.0,59655.0,0.011]
[1724186440755,0.502882,59656.0,59655.0,0.011]
[1724186441058,0.336075,59657.0,59655.0,0.1704]
[1724186441059,0.168447,59657.0,59655.0,0.1704]
[1724186441180,0.000822,59657.0,59656.0,0.0811]
[1724186441806,0.000822,59657.0,59655.0,0.025]
[1724186441807,0.167627,59656.0,59655.0,0.025]
[1724186442035,0.000822,59657.0,59656.0,0.838137]
[1724186442263,0.000822,59657.0,59656.0,0.502882]
[1724186442462,0.000822,59657.0,59656.0,1.03145752]
[1724186442663,0.000822,59657.0,59656.0,1.04445752]
[1724186442928,0.000822,59657.0,59656.0,1.37971252]
[1724186443055,0.000822,59657.0,59656.0,1.47024785]
[1724186443269,0.000822,59657.0,59656.0,1.36971252]
[1724186443472,0.000822,59657.0,59656.0,1.48424785]
[1724186443688,0.000822,59657.0,59656.0,1.47124785]
[1724186444086,0.000822,59657.0,59656.0,1.48424785]
[1724186444287,0.000822,59657.0,59656.0,1.38371252]
[1724186444889,0.000822,59657.0,59656.0,1.37071252]
[1724186445091,0.000822,59657.0,59656.0,0.53257552]
[1724186445317,0.000822,59657.0,59656.0,0.1744]
[1724186445675,0.168446,59657.0,59656.0,0.1744]
[1724186446936,0.838944,59657.0,59656.0,0.028]
[1724186447135,0.98264262,59657.0,59656.0,0.028]
[1724186447340,1.34415434,59657.0,59656.0,0.028]
[1724186447939,0.167647,59649.0,59648.0,0.0009042]
[1724186448997,0.502941,59649.0,59648.0,0.0009042]
[1724186449745,0.502941,59649.0,59648.0,0.0149042]
[1724186450610,0.502941,59649.0,59648.0,0.0289042]
[1724186456977,0.167647,59649.0,59648.0,0.0289042]
[1724186457192,0.502941,59649.0,59648.0,0.0289042]
[1724186458825,1.31592762,59649.0,59648.0,0.0289042]
[1724186459292,1.3421926,59649.0,59648.0,0.0289042]
[1724186459698,1.31592762,59649.0,59648.0,0.0289042]
[1724186459825,1.34219395,59649.0,59648.0,0.0289042]
[1724186460037,0.86450133,59649.0,59648.0,0.0289042]
[1724186460240,0.86450133,59649.0,59648.0,0.1121042]
[1724186460612,0.838235,59649.0,59648.0,0.0981042]
[1724186460863,0.838235,59649.0,59648.0,0.0841042]
[1724186461115,0.838235,59649.0,59648.0,0.1111042]
[1724186461718,0.502941,59649.0,59648.0,0.1727042]
[1724186461905,0.335287,59651.0,59648.0,0.18390504]
[1724186462128,0.167647,59649.0,59648.0,0.18390504]